Cogmind - Beta 14 @@@ ROGUE MODE // 2025.01.05 @ 07:12:54 Player: TerrahLol Result: Destroyed by as-84783 with Assembled Blade Performance ------------- Evolutions (0) 0 Regions Visited (2) 400 Robots Destroyed (26) 130 Value Destroyed (605) 605 Prototype IDs (2) 40 Alien Tech Used (0) 0 Bonus (42) 42 TOTAL SCORE: 1217 Bonus ------- Follower Combat Kills 60 Friendly Fire -18 Cogmind --------- Core Integrity 0/250 Matter 299/300 Energy 99/100 System Corruption 5% Temperature Cool (20) Movement Core (350) Ox6 Location -10/Mines Parts ------- > --- POWER (1) -------- (None) > --- PROPULSION (2) --- (None) > --- UTILITY (2) ------ Large Storage Unit Signal Interpreter > --- WEAPON (2) ------- Light Assault Rifle > --- INVENTORY (15) --- Ion Engine Light Treads Aluminum Leg Aluminum Leg Aluminum Leg Combat Airjet Heat Sink Improved Heat Sink Utility Shielding Plasma Cutter Peak State ------------ > --- POWER ------------ Light Nuclear Core > --- PROPULSION ------- Aluminum Leg Aluminum Leg > --- UTILITY ---------- Large Storage Unit Utility Shielding > --- WEAPON ----------- Medium Laser Grenade Launcher > --- INVENTORY -------- Ion Engine Ion Engine Light Treads Aluminum Leg Signal Interpreter Assault Rifle Light Assault Rifle Light Cannon Plasma Cutter [Rating: 10] Favorites ----------- Power Ion Engine Engine Ion Engine Power Core Light Nuclear Core Propulsion Aluminum Leg Treads Light Treads Leg Aluminum Leg Utility Large Storage Unit Storage Large Storage Unit Processor Signal Interpreter Protection Utility Shielding Weapon Light Cannon Energy Gun EM Pulse Gun Ballistic Gun Assault Rifle Ballistic Cannon Light Cannon Launcher Grenade Launcher Special Weapon Plasma Cutter Build | -11 -10 -10 ------- Run | Yrd Mat Min Slots Evolved . | . . . Power . | . . . Propulsion . | . . . Utility . | . . . Weapon . | . . . Parts Attached 30 | 6 15 9 Power 5 | 1 2 2 Engine 3 | 1 1 1 Core 2 | . 1 1 Reactor . | . . . Propulsion 9 | 2 5 2 Treads 2 | . 2 . Leg 7 | 2 3 2 Wheel . | . . . Hover . | . . . Flight . | . . . Utility 4 | 1 3 . Device . | . . . Storage 2 | 1 1 . Processor 1 | . 1 . Hackware . | . . . Protection 1 | . 1 . Artifact . | . . . Weapon 12 | 2 5 5 Energy Gun 4 | 1 2 1 Energy Cannon . | . . . Ballistic Gun 3 | 1 . 2 Ballistic Cannon 1 | . 1 . Launcher 3 | . 2 1 Special Weapon 1 | . . 1 Impact Weapon . | . . . Slashing Weapon . | . . . Piercing Weapon . | . . . Special Melee Weapon . | . . . Unidentified Prototypes . | . . . Parts Lost 13 | . 3 10 Power 3 | . 1 2 Propulsion 5 | . 1 4 Utility . | . . . Weapon 5 | . 1 4 Highest Loss Streak 5 | . 1 5 To Critical Strikes . | . . . Average Slot Usage (%) 98 | . 97 99 Engine 9 | . 9 10 Core 4 | . 4 3 Treads 6 | . 11 . Leg 21 | . 16 28 Storage 14 | . 15 14 Processor 8 | . 3 14 Protection 3 | . 6 . Energy Gun 8 | . 14 . Ballistic Gun 6 | . 10 . Ballistic Cannon 7 | . 3 13 Launcher 5 | . . 13 Peak Build Rating 10 | 6 10 10 Average Rating 7 | 4 7 8 On Entrance 4 | . 6 8 Naked Turns . | . . . Heaviest Build 34 | 14 34 31 Greatest Support 40 | 20 40 20 Greatest Overweight (x) 1 | . 1 1 Average Overweight (x) . | . . 1 Largest Inventory Capacity 15 | 8 15 15 Average Capacity 14 | 7 14 15 Most Carried 15 | 5 11 15 Average Carried 9 | 3 7 12 Final Capacity 15 | 8 15 15 Final Carried 11 | 4 11 10 Class Distribution -------------------- 100% | Mutant Dominant Class ---------------- Mutant | -10/Materials Mutant | -10/Mines Resources | -11 -10 -10 ----------- Run | Yrd Mat Min Matter Collected 803 | 275 284 244 Remotely . | . . . Salvage Created 727 | 78 504 145 Parts 43 | 2 33 8 Haulers Intercepted 1 | . 1 . Recyclers Shooed . | . . . Parts Field Recycled . | . . . Retrieved Matter . | . . . Parts Self-Destructed . | . . . Prevented . | . . . Kills | -11 -10 -10 ------- Run | Yrd Mat Min Combat Hostiles Destroyed 19 | . 14 5 Guns 8 | . 7 1 Cannons 3 | . 2 1 AOE 8 | . 5 3 Classes Destroyed 9 | 1 6 2 Worker 1 | . 1 . Builder 1 | . . 1 Hauler 1 | . 1 . Recycler 2 | 1 1 . Operator 1 | . 1 . Watcher 2 | . 2 . Swarmer 6 | . 6 . Grunt 12 | . 8 4 Assembled 1 | . . 1 Best Kill Streak 6 | 1 6 2 Combat Bots Only 5 | . 5 2 Max Kills in Single Turn 3 | 1 3 2 Gunslinging . | . . . Exploded 2 | . 2 2 Melee . | . . . Uniques/NPCs Destroyed . | . . . Combat | -11 -10 -10 -------- Run | Yrd Mat Min Hostile Shots Fired 108 | . 78 30 Missed 26 | . 17 9 Damage Taken 1456 | . 800 656 Core 261 | . 117 144 Absorbed by Shields . | . . . Redirected to Shielding 4 | . 4 . Core Remaining (%) 100 | 100 . . Volleys Fired 78 | 5 55 18 Largest 2 | 2 2 2 Hottest 85 | 60 85 70 Shots Fired 147 | 10 109 28 Gun 110 | 10 87 13 Cannon 26 | . 18 8 Launcher 11 | . 4 7 Special . | . . . Kinetic 73 | 5 50 18 Thermal 40 | . 37 3 Explosive 11 | . 4 7 Electromagnetic 23 | 5 18 . Robot Hit Streak 12 | 2 12 5 Robot Miss Streak 5 | 2 5 2 Penetration Max . | . . . Secondary Targets 2 | . 1 1 Max Gunslinging Chain 1 | . 1 1 Shots Hit Robots 85 | 5 65 15 Core Hits 43 | 2 27 14 Critical Kills . | . . . Critical Parts Destroyed . | . . . Critical Strikes 7 | 1 4 2 Burn 5 | . 4 1 Blast 1 | . . 1 Corrupt 1 | 1 . . Melee Attacks . | . . . Impact . | . . . Slashing . | . . . Piercing . | . . . Sneak Attacks . | . . . Combat Hostiles . | . . . Follow-up Attacks . | . . . Damage Inflicted 1786 | 60 1245 481 Guns 852 | 60 689 103 Cannons 242 | . 171 71 Explosions 679 | . 385 294 Melee . | . . . Ramming 13 | . . 13 Kinetic 616 | 48 432 136 Thermal 397 | . 359 38 Explosive 607 | . 313 294 Electromagnetic 153 | 12 141 . Impact . | . . . Slashing . | . . . Piercing . | . . . Highest Corruption 5 | . . 5 Average Corruption 5 | . . 5 Corruption Purged . | . . . Corruption Blocked . | . . . Overload Shots . | . . . Overflow Damage 67 | . 30 37 Projectiles . | . . . Explosions 67 | . 30 37 Melee . | . . . Knockbacks 3 | . 3 . Impact . | . . . Kinetic 2 | . 2 . Secondary 1 | . 1 . Self-Inflicted Damage 64 | . 64 . Shots 2 | . 2 . Rammed . | . . . Targets Rammed 1 | . . 1 Kicked 1 | . . 1 Crushed . | . . . Highest Temperature 326 | . 326 48 Average Temperature 100 | . 115 20 Received Heat Transfer 411 | . 375 36 Effects 1 | . 1 . Energy Bleed 1 | . 1 . Siege Activations . | . . . Robots Corrupted . | . . . Combat Hostiles . | . . . Parts Fried . | . . . Impact Corruptions . | . . . Robots Melted . | . . . Combat Hostiles . | . . . Parts Melted 1 | . 1 . Heat Transferred 1382 | . 1197 185 Parts Sabotaged . | . . . Parts Stolen . | . . . Parts Stripped . | . . . Power Chain Reactions 1 | . 1 . Alert | -11 -10 -10 ------- Run | Yrd Mat Min Peak Influence 238 | 5 230 238 Initial 67 | . 3 67 Average 91 | 1 70 130 Maximum Alert Level 1 | . 1 1 Low Security (%) 87 | 100 97 71 Level 1 12 | . 2 28 Level 2 . | . . . Level 3 . | . . . Level 4 . | . . . Level 5 . | . . . High Security . | . . . Max Security . | . . . Squads Dispatched 2 | . 2 . Investigation . | . . . Extermination . | . . . Reinforcement 2 | . 2 . Assault . | . . . Garrison . | . . . Intercept . | . . . Searches Triggered . | . . . Construction Impeded . | . . . Haulers Reinforced . | . . . Active Scanning Responses . | . . . Cargo Convoy Interrupts . | . . . Stealth | -11 -10 -10 --------- Run | Yrd Mat Min Distress Signals 1 | . 1 . Communications Jammed . | . . . Distress Signals . | . . . Times Spotted 34 | . 21 13 Peak Tracking Total 5 | . 5 5 Tactical Retreats . | . . . Traps | -11 -10 -10 ------- Run | Yrd Mat Min Traps Triggered 2 | . 2 . Indirectly . | . . . Trap Hack Attempts . | . . . Triggered . | . . . Disarmed . | . . . Reprogrammed . | . . . Reused . | . . . Traps Extracted . | . . . Installed . | . . . Triggered . | . . . Machines | -11 -10 -10 ---------- Run | Yrd Mat Min Machines Disabled 3 | . 1 2 Max in Single Turn 1 | . 1 1 Machines Repaired . | . . . Machines Dismantled . | . . . Machines Sabotaged . | . . . Overloaded Fab Kills . | . . . Hacking | -11 -10 -10 --------- Run | Yrd Mat Min Machines Accessed 5 | . 5 . Terminals 3 | . 3 . Fabricators . | . . . Repair Stations . | . . . Recycling Units 2 | . 2 . Scanalyzers . | . . . Garrison Access . | . . . Total Hacks 7 | . 7 . Successful 3 | . 3 . Failed 4 | . 4 . Catastrophic 1 | . 1 . Database Lockouts . | . . . Manual . | . . . Terminals 5 | . 5 . Fabricators . | . . . Repair Stations . | . . . Recycling Units 2 | . 2 . Scanalyzers . | . . . Garrison Access . | . . . Terminal Hacks 1 | . 1 . Prototype ID Bank 1 | . 1 . Fabricator Hacks . | . . . Repair Station Hacks . | . . . Recycling Unit Hacks 2 | . 2 . Retrieve Components 2 | . 2 . Scanalyzer . | . . . Garrison Access Hacks . | . . . Unauthorized Hacks . | . . . Terminals . | . . . Fabricators . | . . . Repair Stations . | . . . Recycling Units . | . . . Scanalyzers . | . . . Garrison Access . | . . . Data Cores Recovered 1 | . 1 . Used . | . . . Hacking Detections 3 | . 3 . Full Trace Events . | . . . Feedback Events . | . . . Feedback Blocked . | . . . Robot Schematics Acquired . | . . . Robots Built . | . . . Authchips . | . . . Time . | . . . Total Robot Build Rating . | . . . Part Schematics Acquired . | . . . Parts Built . | . . . Authchips . | . . . Time . | . . . Total Part Build Rating . | . . . Parts Repaired . | . . . Time . | . . . Parts Recycled . | . . . Recycled Matter . | . . . Retrieved Matter . | . . . Retrieved Components 7 | . 7 . Parts Scanalyzed . | . . . Part Schematics Acquired . | . . . Parts Damaged . | . . . Bothacking | -11 -10 -10 ------------ Run | Yrd Mat Min Used RIF Installer . | . . . Robots Hacked . | . . . Non-combat . | . . . Combat . | . . . Robot Hacks Applied . | . . . Relay Couplers Released . | . . . Fabnet Peak Effective % . | . . . Robots Rewired . | . . . Allies Hacked . | . . . Hacks Repelled . | . . . Allies | -11 -10 -10 -------- Run | Yrd Mat Min Total Allies 3 | . . 3 Largest Group 3 | . . 3 Highest-Rated Group 40 | . . 40 Highest-Rated Ally 16 | . . 16 Total Orders . | . . . Ally Attacks 21 | . . 21 Total Damage 218 | . . 218 Kills 5 | . . 5 Allies Corrupted . | . . . Allies Melted . | . . . Intel | -11 -10 -10 ------- Run | Yrd Mat Min Robot Analysis Total . | . . . Derelict Logs Recovered 1 | . . 1 Drone Launches . | . . . Drone Recoveries . | . . . Exploration | -11 -10 -10 ------------- Run | Yrd Mat Min Turns Passed 1985 | 115 1055 815 Spaces Moved 953 | 75 491 387 Core 18 | 18 . . Treads 191 | . 191 . Legs 744 | 57 300 387 Wheels . | . . . Hover . | . . . Flight . | . . . Fastest Speed 50 | 50 120 190 Average Speed 170 | 103 165 190 Slowest Speed 190 | 120 190 190 Overloaded Moves . | . . . Propulsion Burnouts . | . . . Robots Hopped . | . . . Cave-ins Triggered . | . . . Exploration Rate (%) 49 | 5 73 71 Regions Visited 2 Branch Regions 1 Pre-discovered Areas . | . . . Known Exits Taken 1 | . 1 . Unknown Exits Taken 1 | 1 . . Scrap Searched . | . . . Spaces Dug . | . . . Terrain Destroyed 82 | . 34 48 Melee . | . . . Projectile . | . . . AOE 82 | . 34 48 Terrain Rammed . | . . . Walls Destroyed . | . . . Machines Disabled . | . . . Actions | -11 -10 -10 --------- Run | Yrd Mat Min Total 1160 | 101 621 438 Wait 73 | 9 46 18 Move 951 | 74 490 387 Hop . | . . . Pick Up 25 | 7 13 5 Fast Attach 5 | 3 2 . Attach 14 | 3 5 6 Detach . | . . . Swap 11 | . 8 3 Drop 2 | . 2 . Fire 78 | 5 55 18 Melee . | . . . Ram . | . . . Kick 1 | . . 1 Crush . | . . . Escape Stasis . | . . . Rewire . | . . . Trap . | . . . Miscellaneous . | . . . Route ------- -11/Scrapyard -10/Materials (discovered 3 exits: *Mat x2 / *Min) -10/Mines (discovered 2 exits: *Mat x2) History --------- Turn | Location | Event 14 | -11/Scrapyard | Discovered new exit (range 15) 116 | -11/Scrapyard | Entered Materials 284 | -10/Materials | Discovered new exit (range 16) 313 | -10/Materials | Build established: Mutant 393 | -10/Materials | Discovered new exit (range 15) 751 | -10/Materials | Discovered new exit (range 16) 1011 | -10/Materials | Identified exit to Materials 1166 | -10/Materials | Identified exit to Mines 1171 | -10/Materials | Entered Mines 1181 | -10/Mines | Met a Derelict bent on vengeance 1222 | -10/Mines | Assisted by bots powering up and referring to "LRC-V3" 1335 | -10/Mines | Core integrity fell below 50% 1573 | -10/Mines | Discovered exit to Materials (range 7) 1628 | -10/Mines | Learned Materials emergency access door positions 1657 | -10/Mines | Found a hidden stash of uninstalled traps 1885 | -10/Mines | Discovered exit to Materials (range 8) 1933 | -10/Mines | Assembled infested the area 1938 | -10/Mines | Assisted by a Guerilla fighting off Assembled 1944 | -10/Mines | Core integrity fell below 20% 1970 | -10/Mines | Lost 5 parts (1p2n2w) 1986 | -10/Mines | Destroyed by as-84783 with Assembled Blade Last Messages --------------- 01965_ Acquired 31 matter. 01968_ Acquired 3 matter. 01968_ Trooper 1a knocked back. 01974_ Acquired 3 matter. 01974_ Trooper 1a destroyed. 01975_ Assault Rifle destroyed. 01976_ Acquired 5 matter. 01977_ Acquired 10 matter. 01978_ Acquired 1 matter. 01980_ Aluminum Leg destroyed. 01980_ as-22218 suffers critical hit (Burn). 01980_ Aluminum Leg destroyed. 01980_ System corrupted by crushing effect (+5). 01980_ Knocked back. 01983_ as-08918 destroyed. 01983_ Switching to secondary target: as-22218. 01984_ Acquired 1 matter. 01984_ The unstable cave ceiling collapses. 01984_ Ion Engine destroyed. 01984_ Med. Laser destroyed. Map ----- +----------------------------------------------------+ | ##?????# #????? | | ### ##????# #????? | | # ####?## =##???## #????? | | ## ##?????##[ =#????## ##???? | | ?### #???????##%*##????# #???? | | ???## #????????##[ #???## #???? | | ????# < ##?????????#=*#???# ##???? | | ???## #?????????## ##??# ##????? | | ???# #????????## #### ##????? | | ???# ##????????# ## ###??? | | ???# ###?????????# ##?? | | #??# #???????????# #?? | | #### #???????????# #?? | | #??????????# ## ##?? | | ######??????????# #### #??? | | ##???????????????# ##??# #??? | | #????????????????## ##???# ##??? | | ??????????????????## ##????## #???? | | ???????????????????###???????# ##???? | | ??????????????????????#####?# #????? | | #??????????????????#### # ??# #????? | | ???????????????????## # #??# #????? | | ??????????????????# % ##?# #????? | | ???????????????#### %#?# #????? | | ??????????????## # *a% ### #????? | | ??????????????# !=a@ #????? | | ????????????#### a !a #????? | | ???????????## % !### #????? | | ???????????## # # ###?## #????? | | ???????????# #???## ##????? | | ???????????# # #??## ##?????? | | ???????????## ##??# ##??????? | | ???????????# # #??# ##???????? | | ???????????# #??## #????????? | | ???????????### ##???####????????? | | ????????????## # ###????????????????? | | ?????????????### ##??????????????????? | | ??????????????? #???????????????????? | | ?????????????? ???????????????????? | | ?????????????? ???????????????????? | | ??????????????# ???????????????????? | | ??????????????## ???????????????????? | | ???????????????# ???????????????????? | | ???????????????? ???????????????????? | | ???????????????? ???????????????????? | | ???????????????? ???????????????????? | | ???????????????? ???????????????????? | | ?????????????????????????????????????? | | ?????????????????????????????????????? | | ?????????????????????????????????????? | +----------------------------------------------------+ Best States ------------- Heat Dissipation 25 Energy Generation 14 Energy Capacity 250 Matter Stores 300 Matter Capacity 300 Sight Range 16 Terrain Scan Density 10 Utility Shielding 33 Evasion (%) 55 Recoil Reduction 2 Item Schematics ----------------- None Robot Schematics ------------------ None Fabricated ------------ Nothing Alien Tech Used ----------------- None Achievements -------------- None Challenges ------------ None Game ------ Seed ThermicMediumStreamer Manual? 0 Play Time 00:24:20 Cumulative 8.7 hours Start 2025.01.05 @ 06:49:41 End 2025.01.05 @ 07:12:54 Sessions 1 Manual Loads 0 Difficulty Rogue Special Mode None Game No. 12 Rogue 12 Adventurer 0 Explorer 0 Win Type - Total 0 Types 0/0/0/0/0/0/0/0/0 Lore% 10 Gallery% 13 Achievement% 15 Wizard Run 0 Options --------- Layout 0 ASCII 0 Keyboard 0 Movement Mouse Keybinds 0 Fullscreen 2 Font 24/Smallcaps Map View 76x50 Zoom Use 0% Tactical HUD 1 Map Filters NONE Filters NONE Steam 1 RUN: 9989ea15-266b-4a17-a543-864e8dc542b2